fUSD/lending_fUSD_20240317
["ID","MTS","AMOUNT","RATE_DAILY","PERIOD"]
[319300466,1710646254913,-562.02,0.00015479,2]
[319300467,1710646254922,-534.36,0.00015479,2]
[319300468,1710646254931,-562.02,0.00015479,2]
[319300469,1710646254941,-500.0,0.00015479,2]
[319300470,1710646254951,-534.36,0.00015479,2]
[319300471,1710646254960,-562.02,0.00015479,2]
[319300472,1710646254970,-500.0,0.00015479,2]
[319300473,1710646254980,-562.02,0.00015479,2]
[319300474,1710646254990,-500.0,0.00015479,2]
[319300475,1710646254999,-534.36,0.00015479,2]
[319300476,1710646255009,-562.02,0.00015479,2]
[319300477,1710646255019,-500.0,0.00015479,2]
[319300478,1710646255028,-534.36,0.00015479,2]
[319300479,1710646255038,-562.02,0.00015479,2]
[319300480,1710646255047,-500.0,0.00015479,2]
[319300481,1710646255057,-534.36,0.00015479,2]
[319300482,1710646255067,-562.02,0.00015479,2]
[319300483,1710646255078,-500.0,0.00015479,2]
[319300484,1710646255088,-534.36,0.00015479,2]
[319300485,1710646255098,-562.02,0.00015479,2]
[319300486,1710646255111,-191.32167376,0.00015479,2]
[319300487,1710646255120,-534.36,0.00015479,2]
[319300488,1710646255130,-562.02,0.00015479,2]
[319300489,1710646255139,-534.46,0.00015479,2]
[319300490,1710646255153,-562.02,0.00015479,2]
[319300491,1710646255162,-562.02,0.00015479,2]
[319300492,1710646255172,-562.21,0.00015479,2]
[319300493,1710646255182,-500.0,0.00015479,2]
[319300494,1710646255192,-500.0,0.00015479,2]
[319300495,1710646255201,-500.0,0.00015479,2]
[319300496,1710646255211,-500.0,0.00015479,2]
[319300497,1710646255220,-500.0,0.00015479,2]
[319300498,1710646255230,-500.0,0.00015479,2]
[319300499,1710646255239,-500.0,0.00015479,2]
[319300500,1710646255249,-500.0,0.00015479,2]
[319300501,1710646255258,-500.0,0.00015479,2]
[319300502,1710646255269,-500.0,0.00015479,2]
[319300503,1710646255278,-243.16909809,0.00015479,2]
[319300504,1710646255288,-500.0,0.00015479,2]
[319300505,1710646255299,-500.0,0.00015479,2]
[319300506,1710646255309,-500.0,0.00015479,2]
[319300507,1710646255319,-500.0,0.00015479,2]
[319300508,1710646255329,-500.0,0.00015479,2]
[319300509,1710646255339,-500.0,0.00015479,2]
[319300510,1710646255348,-500.0,0.00015479,2]
[319300511,1710646255358,-500.0,0.00015479,2]
[319300512,1710646255367,-500.0,0.00015479,2]
[319300513,1710646255376,-293.1,0.00015479,2]
[319300514,1710646255386,-61203.205834,0.0001548,2]
[319300515,1710646255921,-2859.60434975,0.0001532,2]
[319300516,1710646255934,-140.39565025,0.0001532,2]
[319300517,1710646255944,-500.0,0.00015397,2]
[319300518,1710646255954,-500.0,0.00015397,2]
[319300519,1710646255963,-1354.921,0.00015421,2]
[319300520,1710646255974,-434.459,0.00015421,2]
[319300521,1710646255984,-500.0,0.00015429,2]
[319300522,1710646255995,-500.0,0.00015477,2]
[319300523,1710646256005,-478.03957642,0.00015478,2]
[319300524,1710646256016,-159.66055539,0.00015478,2]
[319300525,1710646256026,-498.84,0.00015478,2]
[319300526,1710646256037,-294.75051208,0.00015478,2]
[319300527,1710646256047,-346.57934051,0.00015478,2]
[319300528,1710646256058,-5534.90320652,0.0001548,2]
[319300529,1710646256073,-629.27928532,0.0001548,2]
[319300530,1710646256086,-5686.98448303,0.0001548,2]
[319300531,1710646256099,-68413.0,0.0001548,2]
[319300532,1710646256116,-423.74481318,0.0001548,2]
[319300533,1710646256129,-524.70466207,0.0001548,2]
[319300534,1710646256297,-21.775,0.0001548,2]
[319300535,1710646256310,-2127.57608946,0.0001548,2]
[319300536,1710646256323,-81917.96364798,0.0001548,2]
[319300537,1710646256343,-995.733,0.0001548,2]
[319300538,1710646256357,-16210.27422634,0.0001548,2]
[319300539,1710646256371,-340.70254911,0.0001548,2]
[319300540,1710646256416,-11499.99974,0.0001548,2]
[319300541,1710646256429,-18165.90006287,0.0001548,2]
[319300542,1710646256441,-68610.88011599,0.0001548,2]
[319300543,1710646468760,150.35,0.00011307,2]
[319300545,1710646868453,1588.06104274,0.00011723,2]
[319300546,1710646873443,1588.06104274,0.00011724,2]
[319300547,1710646878437,1588.06104274,0.00011724,2]
[319300548,1710646918202,1840.11251199,0.000118,2]
[319300549,1710646960551,150.35,0.00010912,2]
[319300558,1710647432428,-155.0,0.00011816,2]
[319300559,1710647432441,-1052.89324976,0.00011817,2]
[319300560,1710647432454,-1059.0,0.00011818,2]
[319300561,1710647432465,-150.0,0.00011839,2]
[319300562,1710647432475,-3639.28827618,0.0001184,2]
[319300563,1710647432499,-5837.903074,0.0001184,2]
[319300564,1710647432538,-3262.20164943,0.0001184,2]
[319300565,1710647432552,-428.73,0.00011841,2]
[319300566,1710647432562,-150.0,0.00013644,2]
[319300567,1710647432571,-9678.94692041,0.00013653,2]
[319300568,1710647432584,-14221.05307959,0.00013653,2]
[319300569,1710647432595,-787.25,0.00013657,2]
[319300570,1710647432608,-250.0,0.00013671,2]
[319300571,1710647432620,-243.81,0.00013671,2]
[319300572,1710647432630,-280.35,0.00013671,2]
[319300573,1710647432641,-212.75,0.00013677,2]
[319300574,1710647432652,-169.73,0.00013696,2]
[319300575,1710647432667,-150.99,0.00013696,2]
[319300576,1710647432679,-272.77,0.00013696,2]
[319300577,1710647432691,-200.0,0.00013699,2]
[319300578,1710647432703,-181.68,0.00013699,2]
[319300579,1710647432714,-250.0,0.00013699,2]
[319300580,1710647432724,-239.43,0.00013699,2]
[319300581,1710647432734,-3509.75,0.00013713,2]
[319300582,1710647432746,-787.06,0.00013742,2]
[319300583,1710647432757,-262.56,0.00013813,2]
[319300584,1710647432768,-472.92,0.00014044,2]
[319300585,1710647432778,-472.92,0.00014096,2]
[319300586,1710647432789,-428.73,0.00014104,2]
[319300587,1710647432801,-472.92,0.00014148,2]
[319300590,1710647432813,-160.27,0.00014173,2]
[319300592,1710647432825,-472.92,0.00014199,2]
[319300594,1710647432837,-472.92,0.00014251,2]
[319300596,1710647432849,-472.92,0.00014303,2]
[319300598,1710647432860,-472.92,0.00014355,2]
[319300601,1710647432871,-472.92,0.00014406,2]
[319300603,1710647432882,-472.92,0.00014458,2]
[319300605,1710647432893,-256.09,0.00014504,2]
[319300607,1710647432903,-472.92,0.0001451,2]
[319300608,1710647432913,-472.92,0.00014562,2]
[319300609,1710647432923,-472.92,0.00014613,2]
[319300610,1710647432933,-10478.9237,0.00014627,2]
[319300611,1710647432942,-3818.0,0.00014649,2]
[319300612,1710647432952,-472.92,0.00014665,2]
[319300613,1710647432962,-153.623933,0.00014697,2]
[319300614,1710647432973,-472.92,0.00014717,2]
[319300615,1710647432984,-15298.95196262,0.00014727,2]
[319300616,1710647432999,-292.20003663,0.00014727,2]
[319300617,1710647433013,-402.62725625,0.00014727,2]
[319300618,1710647433028,-929.51719965,0.00014727,2]
[319300619,1710647433070,-8055.51844485,0.00014727,2]
[319300620,1710647433081,-563.9451,0.00014727,2]
[319300621,1710647433091,-4743.93645515,0.00014727,2]
[319300622,1710647433104,-259.94301548,0.00014727,2]
[319300623,1710647433120,-1380.44026994,0.00014727,2]
[319300631,1710647437989,-368.82545943,0.00014727,2]
[319300632,1710647438001,-444.74814893,0.00014769,2]
[319300633,1710647438014,-28.17185107,0.00014769,2]
[319300634,1710647438026,-472.92,0.0001482,2]
[319300635,1710647438036,-472.92,0.00014872,2]
[319300636,1710647438046,-472.92,0.00014924,2]
[319300637,1710647438060,-195.51,0.00014975,2]
[319300638,1710647438072,-27.0539368,0.00014976,2]
[319300639,1710647438084,-445.8660632,0.00014976,2]
[319300640,1710647438095,-831.68747497,0.00015,2]
[319300641,1710647438117,-145.66286659,0.00015,2]
[319300642,1710647438127,-2550.0,0.00015,4]
[319300643,1710647438137,-280.99731426,0.00015,2]
[319300644,1710647438147,-5000.0,0.00015,2]
[319300645,1710647438157,-472.92,0.00015027,2]
[319300646,1710647438167,-2885.39214243,0.000151,2]
[319300647,1710647438177,-2885.39214234,0.000151,2]
[319300648,1710647438187,-2885.39214234,0.000151,2]
[319300649,1710647438198,-2885.39214234,0.00015108,2]
[319300650,1710647438207,-2885.39214234,0.00015125,2]
[319300651,1710647438217,-1000.0,0.00015133,2]
[319300652,1710647438227,-2885.39214234,0.00015142,2]
[319300653,1710647438237,-1442.53192901,0.0001515,2]
[319300654,1710647438247,-36055.4728,0.0001515,2]
[319300655,1710647438257,-150.96906865,0.00015157,2]
[319300656,1710647438267,-178.23011038,0.00015157,2]
[319300657,1710647438277,-1410.86305698,0.00015159,2]
[319300707,1710647438952,-1474.52908536,0.00015159,2]
[319300709,1710647438961,-3304.99357086,0.00015159,2]
[319300711,1710647438972,-2018.10000116,0.00015159,2]
[319300713,1710647438983,-941.83137895,0.00015159,2]
[319300716,1710647438994,-1466.10849461,0.00015159,2]
[319300717,1710647439003,-241.90791721,0.00015161,2]
[319300719,1710647439012,-2885.39214234,0.00015176,2]
[319300721,1710647439021,-1557.59141646,0.00015181,2]
[319300723,1710647439052,-342.155,0.00015181,2]
[319300724,1710647439069,-5831.28702902,0.00015181,2]
[319300725,1710647439077,-1442.53192896,0.00015186,2]
[319300726,1710647439086,-2885.39214234,0.00015193,2]
[319300727,1710647439095,-155.34266331,0.00015198,2]
[319300728,1710647439105,-1003.48,0.000152,2]
[319300729,1710647439116,-1001.29,0.000152,3]
[319300730,1710647439126,-6692.07696611,0.00015203,2]
[319300731,1710647439139,-1038.95647937,0.00015203,2]
[319300732,1710647439150,-699.71456183,0.0001521,2]
[319300733,1710647439165,-927.061008,0.0001521,2]
[319300734,1710647439177,-683.84,0.0001521,2]
[319300735,1710647439193,-359.82567341,0.0001521,2]
[319300736,1710647439212,-214.9508991,0.0001521,2]
[319300737,1710647439221,-1442.53192896,0.00015221,2]
[319300738,1710647439231,-7731.03344548,0.00015225,2]
[319300739,1710647439240,-2885.39214234,0.00015226,2]
[319300740,1710647439249,-164.53420389,0.00015233,2]
[319300741,1710647439258,-164.53420389,0.00015233,2]
[319300742,1710647439267,-164.53420389,0.00015233,2]
[319300743,1710647439276,-7127.60068624,0.00015233,2]
[319300744,1710647439285,-7127.6006862,0.00015233,2]
[319300745,1710647439294,-7127.6006862,0.00015233,2]
[319300746,1710647439303,-7127.6006862,0.00015233,2]
[319300747,1710647439313,-7127.6006862,0.00015233,2]
[319300748,1710647439322,-2885.39214234,0.00015243,2]
[319300749,1710647439331,-5603.00104582,0.00015247,2]
[319300750,1710647439343,-2128.03239966,0.00015247,2]
[319300751,1710647439352,-1203.18260034,0.00015248,2]
[319300752,1710647439394,-5924.41808586,0.00015248,2]
[319300753,1710647439405,-452.34448053,0.00015248,2]
[319300754,1710647439415,-1060.00055851,0.00015248,2]
[319300755,1710647439424,-5504.19849091,0.00015248,2]
[319300756,1710647439434,-21336.43574285,0.00015248,2]
[319300757,1710647439443,-1611.46479703,0.00015248,2]
[319300758,1710647439453,-164.53420389,0.00015248,2]
[319300759,1710647439464,-97778.22097338,0.00015249,2]
[319300760,1710647439475,-1677756.80913024,0.0001525,2]
[319300761,1710647439484,-1442.53192896,0.00015257,2]
[319300762,1710647439493,-2885.39214234,0.0001526,2]
[319300763,1710647439502,-7731.03344548,0.00015269,2]
[319300764,1710647439517,-2885.39214234,0.00015277,2]
[319300765,1710647439528,-7127.6006862,0.00015286,2]
[319300766,1710647439537,-164.53420389,0.00015286,2]
[319300767,1710647439547,-7731.03344548,0.0001529,2]
[319300768,1710647439559,-1442.53192896,0.00015293,2]
[319300769,1710647439569,-2885.39214234,0.00015294,2]
[319300770,1710647439579,-547.01608864,0.00015296,2]
[319300771,1710647439589,-1000.0,0.00015299,2]
[319300772,1710647439599,-1000.0,0.00015299,2]
[319300773,1710647439608,-3258.0,0.000153,2]
[319300774,1710647439617,-2885.39214234,0.00015311,2]
[319300775,1710647439627,-7731.03344548,0.00015312,2]
[319300776,1710647439636,-7127.6006862,0.00015324,2]
[319300777,1710647439646,-164.53420389,0.00015324,2]
[319300778,1710647439655,-2885.39214234,0.00015328,2]
[319300779,1710647439668,-1442.53192896,0.00015329,2]
[319300780,1710647439679,-6661.33688508,0.0001533,2]
[319300781,1710647439689,-7731.03344548,0.00015334,2]
[319300782,1710647439700,-500.0,0.00015342,2]
[319300783,1710647439710,-151.0,0.00015342,2]
[319300784,1710647439719,-712.0,0.00015342,2]
[319300785,1710647439729,-500.0,0.00015342,2]
[319300786,1710647439741,-500.0,0.00015342,2]
[319300787,1710647439750,-151.0,0.00015342,2]
[319300788,1710647439761,-769.0,0.00015342,2]
[319300789,1710647439771,-500.0,0.00015342,2]
[319300790,1710647439781,-151.0,0.00015342,2]
[319300791,1710647439792,-500.0,0.00015342,2]
[319300792,1710647439802,-151.0,0.00015342,2]
[319300793,1710647439812,-500.0,0.00015342,2]
[319300794,1710647439820,-151.0,0.00015342,2]
[319300795,1710647439831,-500.0,0.00015342,2]
[319300796,1710647439840,-232.0,0.00015342,2]
[319300797,1710647439850,-501.0,0.00015342,2]
[319300798,1710647439859,-249.23768682,0.00015342,2]
[319300799,1710647439868,-500.0,0.00015342,2]
[319300800,1710647439878,-500.0,0.00015342,2]
[319300801,1710647439888,-500.0,0.00015342,2]
[319300802,1710647439897,-597.8,0.00015342,2]
[319300803,1710647439907,-500.0,0.00015342,2]
[319300804,1710647439917,-500.0,0.00015342,2]
[319300805,1710647439928,-500.0,0.00015342,2]
[319300806,1710647439939,-500.0,0.00015342,2]
[319300807,1710647439949,-500.0,0.00015342,2]
[319300808,1710647439959,-500.0,0.00015342,2]
[319300809,1710647439969,-602.03,0.00015342,2]
[319300810,1710647439979,-500.0,0.00015342,2]
[319300811,1710647439989,-500.0,0.00015342,2]
[319300812,1710647439999,-500.0,0.00015342,2]
[319300813,1710647440008,-500.0,0.00015342,2]
[319300814,1710647440019,-500.0,0.00015342,2]
[319300815,1710647440028,-199.2,0.00015342,2]
[319300816,1710647440038,-500.0,0.00015342,2]
[319300817,1710647440047,-500.0,0.00015342,2]
[319300818,1710647440059,-234.8,0.00015342,2]
[319300819,1710647440069,-500.0,0.00015342,2]
[319300820,1710647440080,-500.0,0.00015342,2]
[319300821,1710647440091,-500.0,0.00015342,2]
[319300822,1710647440100,-500.0,0.00015342,2]
[319300823,1710647440112,-505.67969367,0.00015342,2]
[319300824,1710647440121,-510.68652443,0.00015342,2]
[319300825,1710647440131,-500.0,0.00015342,2]
[319300826,1710647440141,-500.0,0.00015342,2]
[319300827,1710647440151,-500.0,0.00015342,2]
[319300828,1710647440160,-288.1473426,0.00015342,2]
[319300829,1710647440169,-500.0,0.00015342,2]
[319300830,1710647440178,-500.0,0.00015342,2]
[319300831,1710647440187,-263.86,0.00015342,2]
[319300832,1710647440197,-500.0,0.00015342,2]
[319300833,1710647440206,-500.0,0.00015342,2]
[319300834,1710647440217,-500.0,0.00015342,2]
[319300835,1710647440228,-500.0,0.00015342,2]
[319300836,1710647440238,-500.0,0.00015342,2]
[319300837,1710647440248,-410.54461772,0.00015342,2]
[319300838,1710647440258,-507.98865535,0.00015342,2]
[319300839,1710647440267,-355.20356135,0.00015342,2]
[319300840,1710647440276,-498.72791249,0.00015342,2]
[319300841,1710647440286,-500.0,0.00015342,2]
[319300842,1710647440296,-500.0,0.00015342,2]
[319300843,1710647440307,-500.0,0.00015342,2]
[319300844,1710647440317,-500.0,0.00015342,2]
[319300845,1710647440326,-500.0,0.00015342,2]
[319300846,1710647440336,-500.0,0.00015342,2]
[319300847,1710647440345,-500.0,0.00015342,2]
[319300848,1710647440355,-500.0,0.00015342,2]
[319300849,1710647440364,-500.0,0.00015342,2]
[319300850,1710647440374,-163.27890815,0.00015342,2]
[319300851,1710647440383,-500.0,0.00015342,2]
[319300852,1710647440393,-500.0,0.00015342,2]
[319300853,1710647440402,-500.0,0.00015342,2]
[319300854,1710647440412,-500.0,0.00015342,2]
[319300855,1710647440422,-191.38919771,0.00015342,2]
[319300856,1710647440431,-498.18221204,0.00015342,2]
[319300857,1710647440440,-500.0,0.00015342,2]
[319300858,1710647440450,-500.0,0.00015342,2]
[319300859,1710647440469,-500.0,0.00015342,2]
[319300860,1710647440479,-175.82,0.00015342,2]
[319300861,1710647440489,-500.0,0.00015342,2]
[319300862,1710647440498,-500.0,0.00015342,2]
[319300863,1710647440508,-500.0,0.00015342,2]
[319300864,1710647440518,-500.0,0.00015342,2]
[319300865,1710647440529,-520.35,0.00015342,2]
[319300866,1710647440539,-500.0,0.00015342,2]
[319300867,1710647440549,-500.0,0.00015342,2]
[319300868,1710647440561,-500.0,0.00015342,2]
[319300869,1710647440571,-500.0,0.00015342,2]
[319300870,1710647440581,-500.0,0.00015342,2]
[319300871,1710647440590,-500.0,0.00015342,2]
[319300872,1710647440601,-500.0,0.00015342,2]
[319300873,1710647440611,-500.0,0.00015342,2]
[319300874,1710647440621,-500.0,0.00015342,2]
[319300875,1710647440632,-500.0,0.00015342,2]
[319300876,1710647440642,-500.0,0.00015342,2]
[319300877,1710647440652,-500.0,0.00015342,2]
[319300878,1710647440663,-500.0,0.00015342,2]
[319300879,1710647440673,-500.0,0.00015342,2]
[319300880,1710647440684,-500.0,0.00015342,2]
[319300881,1710647440693,-500.0,0.00015342,2]
[319300882,1710647440704,-500.0,0.00015342,2]
[319300883,1710647440714,-500.0,0.00015342,2]
[319300884,1710647440724,-500.0,0.00015342,2]
[319300885,1710647440733,-383.82587127,0.00015342,2]
[319300886,1710647440743,-500.49712732,0.00015342,2]
[319300887,1710647440754,-500.0,0.00015342,2]
[319300888,1710647440764,-500.0,0.00015342,2]
[319300889,1710647440774,-500.0,0.00015342,2]
[319300890,1710647440785,-500.0,0.00015342,2]
[319300891,1710647440796,-500.0,0.00015342,2]
[319300892,1710647440808,-500.0,0.00015342,2]
[319300893,1710647440819,-156.0872638,0.00015342,2]
[319300894,1710647440830,-500.0,0.00015342,2]
[319300895,1710647440840,-500.0,0.00015342,2]
[319300896,1710647440852,-500.0,0.00015342,2]
[319300897,1710647440864,-500.0,0.00015342,2]
[319300898,1710647440875,-500.0,0.00015342,2]
[319300899,1710647440884,-500.0,0.00015342,2]
[319300900,1710647440894,-500.0,0.00015342,2]
[319300901,1710647440905,-500.0,0.00015342,2]
[319300902,1710647440916,-500.0,0.00015342,2]
[319300903,1710647440926,-500.0,0.00015342,2]
[319300904,1710647440936,-429.74768213,0.00015342,2]
[319300905,1710647440946,-500.0,0.00015342,2]
[319300906,1710647440956,-520.46558658,0.00015342,2]
[319300907,1710647440965,-500.0,0.00015342,2]
[319300908,1710647440975,-500.0,0.00015342,2]
[319300909,1710647440986,-500.0,0.00015342,2]
[319300910,1710647440996,-500.0,0.00015342,2]
[319300911,1710647441005,-500.0,0.00015342,2]
[319300912,1710647441015,-500.0,0.00015342,2]
[319300913,1710647441025,-500.0,0.00015342,2]
[319300914,1710647441035,-500.0,0.00015342,2]
[319300915,1710647441045,-500.0,0.00015342,2]
[319300916,1710647441055,-500.0,0.00015342,2]
[319300917,1710647441064,-500.0,0.00015342,2]
[319300918,1710647441074,-508.66691971,0.00015342,2]
[319300919,1710647441083,-503.44125404,0.00015342,2]
[319300920,1710647441092,-500.0,0.00015342,2]
[319300921,1710647441102,-500.0,0.00015342,2]
[319300922,1710647441111,-500.0,0.00015342,2]
[319300923,1710647441121,-500.0,0.00015342,2]
[319300924,1710647441130,-529.07863871,0.00015342,2]
[319300925,1710647441139,-500.0,0.00015342,2]
[319300926,1710647441149,-500.0,0.00015342,2]
[319300927,1710647441158,-500.0,0.00015342,2]
[319300928,1710647441167,-248.4216347,0.00015342,2]
[319300929,1710647441177,-500.0,0.00015342,2]
[319300930,1710647441186,-500.0,0.00015342,2]
[319300931,1710647441195,-186.29236096,0.00015342,2]
[319300932,1710647441205,-500.0,0.00015342,2]
[319300933,1710647441215,-500.0,0.00015342,2]
[319300934,1710647441224,-500.70144619,0.00015342,2]
[319300935,1710647441234,-500.0,0.00015342,2]
[319300936,1710647441243,-500.0,0.00015342,2]
[319300937,1710647441255,-500.0,0.00015342,2]
[319300938,1710647441265,-500.0,0.00015342,2]
[319300939,1710647441274,-519.04342203,0.00015342,2]
[319300940,1710647441283,-518.01563289,0.00015342,2]
[319300941,1710647441293,-500.0,0.00015342,2]
[319300942,1710647441303,-500.0,0.00015342,2]
[319300943,1710647441313,-500.0,0.00015342,2]
[319300944,1710647441322,-500.0,0.00015342,2]
[319300945,1710647441334,-246.79,0.00015342,2]
[319300946,1710647441343,-498.34611767,0.00015342,2]
[319300947,1710647441354,-500.0,0.00015342,2]
[319300948,1710647441363,-500.0,0.00015342,2]
[319300949,1710647441373,-501.61064658,0.00015342,2]
[319300950,1710647441383,-500.82818415,0.00015342,2]
[319300951,1710647441393,-500.0,0.00015342,2]
[319300952,1710647441403,-541.75809745,0.00015342,2]
[319300953,1710647441413,-500.0,0.00015342,2]
[319300954,1710647441422,-497.80791469,0.00015342,2]
[319300955,1710647441432,-500.0,0.00015342,2]
[319300956,1710647441442,-500.0,0.00015342,2]
[319300957,1710647441451,-500.0,0.00015342,2]
[319300958,1710647441461,-500.0,0.00015342,2]
[319300959,1710647441471,-297.47197839,0.00015342,2]
[319300960,1710647441481,-500.0,0.00015342,2]
[319300961,1710647441491,-500.0,0.00015342,2]
[319300962,1710647441500,-500.0,0.00015342,2]
[319300963,1710647441510,-500.0,0.00015342,2]
[319300964,1710647441522,-324.21051597,0.00015342,2]
[319300965,1710647441532,-500.0,0.00015342,2]
[319300966,1710647441542,-500.0,0.00015342,2]
[319300967,1710647441552,-500.0,0.00015342,2]
[319300968,1710647441561,-500.0,0.00015342,2]
[319300969,1710647441571,-500.0,0.00015342,2]
[319300970,1710647441581,-500.0,0.00015342,2]
[319300971,1710647441591,-500.0,0.00015342,2]
[319300972,1710647441601,-500.0,0.00015342,2]
[319300973,1710647441612,-478.70581605,0.00015342,2]
[319300974,1710647441621,-400.36937492,0.00015342,2]
[319300975,1710647441631,-500.0,0.00015342,2]
[319300976,1710647441640,-500.0,0.00015342,2]
[319300977,1710647441650,-500.0,0.00015342,2]
[319300978,1710647441659,-500.0,0.00015342,2]
[319300979,1710647441669,-500.0,0.00015342,2]
[319300980,1710647441678,-500.0,0.00015342,2]
[319300981,1710647441687,-500.0,0.00015342,2]
[319300982,1710647441697,-500.0,0.00015342,2]
[319300983,1710647441706,-500.0,0.00015342,2]
[319300984,1710647441715,-500.0,0.00015342,2]
[319300985,1710647441725,-500.0,0.00015342,2]
[319300986,1710647441737,-500.0,0.00015342,2]
[319300987,1710647441747,-581.1,0.00015342,2]
[319300988,1710647441758,-501.66370783,0.00015342,2]
[319300989,1710647441768,-500.0,0.00015342,2]
[319300990,1710647441779,-500.0,0.00015342,2]
[319300991,1710647441789,-500.0,0.00015342,2]
[319300992,1710647441799,-500.0,0.00015342,2]
[319300993,1710647441809,-500.0,0.00015342,2]
[319300994,1710647441818,-570.36,0.00015342,2]
[319300995,1710647441827,-500.0,0.00015342,2]
[319300996,1710647441836,-500.0,0.00015342,2]
[319300997,1710647441846,-500.0,0.00015342,2]
[319300998,1710647441855,-537.78943326,0.00015342,2]
[319300999,1710647441864,-501.75977983,0.00015342,2]
[319301000,1710647441873,-500.0,0.00015342,2]
[319301001,1710647441882,-500.0,0.00015342,2]
[319301002,1710647441891,-500.0,0.00015342,2]
[319301003,1710647441901,-500.0,0.00015342,2]
[319301004,1710647441910,-500.0,0.00015342,2]
[319301005,1710647441919,-500.0,0.00015342,2]
[319301006,1710647441929,-500.0,0.00015342,2]
[319301007,1710647441938,-505.96098131,0.00015342,2]
[319301008,1710647441947,-500.0,0.00015342,2]
[319301009,1710647441956,-500.0,0.00015342,2]
[319301010,1710647441965,-500.0,0.00015342,2]
[319301011,1710647441974,-500.0,0.00015342,2]
[319301012,1710647441984,-500.0,0.00015342,2]
[319301013,1710647441994,-500.0,0.00015342,2]
[319301014,1710647442003,-500.0,0.00015342,2]
[319301015,1710647442012,-500.0,0.00015342,2]
[319301016,1710647442022,-500.0,0.00015342,2]
[319301017,1710647442032,-522.33860142,0.00015342,2]
[319301018,1710647442042,-500.0,0.00015342,2]
[319301019,1710647442052,-500.0,0.00015342,2]
[319301020,1710647442253,-500.0,0.00015342,2]
[319301021,1710647442263,-500.0,0.00015342,2]
[319301022,1710647442273,-500.0,0.00015342,2]
[319301023,1710647442282,-500.0,0.00015342,2]
[319301024,1710647442292,-500.0,0.00015342,2]
[319301025,1710647442302,-500.0,0.00015342,2]
[319301026,1710647442311,-500.0,0.00015342,2]
[319301027,1710647442321,-500.0,0.00015342,2]
[319301028,1710647442331,-500.0,0.00015342,2]
[319301029,1710647442340,-500.0,0.00015342,2]
[319301030,1710647442350,-518.39,0.00015342,2]
[319301031,1710647442359,-500.0,0.00015342,2]
[319301032,1710647442368,-503.75791753,0.00015342,2]
[319301033,1710647442380,-500.0,0.00015342,2]
[319301034,1710647442391,-500.0,0.00015342,2]
[319301035,1710647442401,-500.0,0.00015342,2]
[319301036,1710647442411,-500.0,0.00015342,2]
[319301037,1710647442421,-518.0223634,0.00015342,2]
[319301038,1710647442430,-2122.44,0.00015342,2]
[319301039,1710647442440,-2122.44,0.00015342,2]
[319301040,1710647442449,-500.0,0.00015342,2]
[319301041,1710647442459,-2122.44,0.00015342,2]
[319301042,1710647442468,-500.0,0.00015342,2]
[319301043,1710647442478,-500.0,0.00015342,2]
[319301044,1710647442487,-2122.44,0.00015342,2]
[319301045,1710647442497,-2122.44,0.00015342,2]
[319301046,1710647442508,-500.0,0.00015342,2]
[319301047,1710647442518,-500.0,0.00015342,2]
[319301048,1710647442529,-2122.44,0.00015342,2]
[319301049,1710647442538,-500.0,0.00015342,2]